Cogmind - Beta 14 @@@ ROGUE MODE // 2024.09.01 @ 14:22:25 Player: TapeIsSticky Result: Destroyed by D-53 Grenadier with Mini Grenade Launcher Performance ------------- Evolutions (0) 0 Regions Visited (2) 400 Robots Destroyed (36) 180 Value Destroyed (853) 853 Prototype IDs (0) 0 Alien Tech Used (0) 0 Bonus (0) 0 TOTAL SCORE: 1433 Bonus ------- None Cogmind --------- Core Integrity 0/250 Matter 260/300 Energy 100/100 System Corruption 0% Temperature Cool (0) Movement Treading (320) Ox2 Location -10/Mines Parts ------- > --- POWER (1) -------- (None) > --- PROPULSION (2) --- Light Treads Light Treads > --- UTILITY (2) ------ Huge Storage Unit Signal Interpreter > --- WEAPON (2) ------- Light Cannon > --- INVENTORY (25) --- Improved Ion Engine Improved Ion Engine Improved Ion Engine Improved Ion Engine Aluminum Leg Aluminum Leg Wheel Compact Wheel Armored Wheel Armored Wheel Armored Wheel Armored Wheel Improved Heat Sink Huge Storage Unit Structural Scanner Seismic Detector Hacking Suite Hacking Suite Tractor Beam Rocket Launcher Rocket Launcher Rocket Launcher Peak State ------------ > --- POWER ------------ Ion Engine > --- PROPULSION ------- Light Treads Light Treads > --- UTILITY ---------- Improved Heat Sink Huge Storage Unit > --- WEAPON ----------- EM Pulse Gun Assault Rifle > --- INVENTORY -------- Improved Ion Engine Improved Ion Engine Improved Ion Engine Improved Ion Engine Light Treads Light Treads Aluminum Leg Aluminum Leg Wheel Compact Wheel Armored Wheel Armored Wheel Armored Wheel Armored Wheel Huge Storage Unit Structural Scanner Signal Interpreter Seismic Detector Hacking Suite Hacking Suite Tractor Beam Grenade Launcher Rocket Launcher Rocket Launcher Rocket Launcher [Rating: 13] Favorites ----------- Power Ion Engine Engine Ion Engine Propulsion Light Treads Treads Light Treads Utility Huge Storage Unit Device Improved Heat Sink Storage Huge Storage Unit Processor Signal Interpreter Weapon Assault Rifle Energy Gun EM Pulse Gun Ballistic Gun Assault Rifle Ballistic Cannon Light Cannon Launcher Grenade Launcher Build | -11 -10 -10 ------- Run | Yrd Mat Min Slots Evolved . | . . . Power . | . . . Propulsion . | . . . Utility . | . . . Weapon . | . . . Parts Attached 23 | 7 14 2 Power 2 | 1 1 . Engine 2 | 1 1 . Core . | . . . Reactor . | . . . Propulsion 4 | 2 1 1 Treads 4 | 2 1 1 Leg . | . . . Wheel . | . . . Hover . | . . . Flight . | . . . Utility 7 | 2 4 1 Device 4 | 1 3 . Storage 2 | 1 1 . Processor 1 | . . 1 Hackware . | . . . Protection . | . . . Artifact . | . . . Weapon 10 | 2 8 . Energy Gun 4 | 1 3 . Energy Cannon . | . . . Ballistic Gun 1 | 1 . . Ballistic Cannon 1 | . 1 . Launcher 4 | . 4 . Special Weapon . | . . . Impact Weapon . | . . . Slashing Weapon . | . . . Piercing Weapon . | . . . Special Melee Weapon . | . . . Unidentified Prototypes . | . . . Parts Lost 8 | . 5 3 Power 2 | . 1 1 Propulsion 2 | . 1 1 Utility . | . . . Weapon 4 | . 3 1 Highest Loss Streak 3 | . 2 3 To Critical Strikes . | . . . Average Slot Usage (%) 97 | . 97 98 Engine 13 | . 13 13 Treads 27 | . 28 27 Device 12 | . 14 . Storage 14 | . 14 14 Processor 1 | . . 14 Energy Gun 7 | . 8 . Ballistic Gun 8 | . 10 . Ballistic Cannon 6 | . 5 14 Launcher 3 | . 1 13 Peak Build Rating 13 | 7 13 12 Average Rating 10 | 4 11 10 On Entrance 6 | . 7 12 Naked Turns . | . . . Heaviest Build 92 | 13 92 91 Greatest Support 40 | 40 40 40 Greatest Overweight (x) 2 | . 2 2 Average Overweight (x) 1 | . 1 2 Largest Inventory Capacity 25 | 8 25 25 Average Capacity 23 | 7 24 25 Most Carried 25 | 6 25 23 Average Carried 20 | 2 20 22 Final Capacity 25 | 8 25 25 Final Carried 23 | 6 23 22 Class Distribution -------------------- 100% | Mutant Dominant Class ---------------- Mutant | -10/Materials Mutant | -10/Mines Resources | -11 -10 -10 ----------- Run | Yrd Mat Min Matter Collected 692 | 225 460 7 Remotely . | . . . Salvage Created 904 | 23 841 40 Parts 68 | 2 56 10 Haulers Intercepted 2 | . 2 . Recyclers Shooed . | . . . Parts Field Recycled . | . . . Retrieved Matter . | . . . Parts Self-Destructed . | . . . Prevented . | . . . Kills | -11 -10 -10 ------- Run | Yrd Mat Min Combat Hostiles Destroyed 24 | . 17 7 Guns 7 | . 7 . Cannons 5 | . 3 2 AOE 12 | . 7 5 Classes Destroyed 9 | 1 6 2 Builder 1 | . . 1 Tunneler 2 | 1 1 . Hauler 2 | . 2 . Recycler 2 | . 2 . Operator 3 | . 3 . Watcher 2 | . 2 . Swarmer 9 | . 3 6 Grunt 14 | . 14 . Demolisher 1 | . . 1 Best Kill Streak 4 | 1 4 3 Combat Bots Only 3 | . 3 3 Max Kills in Single Turn 3 | 1 2 3 Gunslinging . | . . . Exploded 3 | . 2 3 Melee . | . . . Uniques/NPCs Destroyed . | . . . Combat | -11 -10 -10 -------- Run | Yrd Mat Min Hostile Shots Fired 100 | . 83 17 Missed 26 | . 22 4 Damage Taken 1214 | . 737 477 Core 277 | . 127 150 Absorbed by Shields . | . . . Core Remaining (%) 100 | 100 . . Volleys Fired 71 | 1 63 7 Largest 2 | 2 2 2 Hottest 65 | 60 60 65 Shots Fired 122 | 2 112 8 Gun 88 | 2 86 . Cannon 24 | . 18 6 Launcher 10 | . 8 2 Special . | . . . Kinetic 74 | 1 67 6 Thermal . | . . . Explosive 10 | . 8 2 Electromagnetic 38 | 1 37 . Robot Hit Streak 14 | 2 14 4 Robot Miss Streak 3 | . 3 1 Penetration Max . | . . . Secondary Targets . | . . . Shots Hit Robots 81 | 2 75 4 Core Hits 55 | 1 45 9 Critical Kills . | . . . Critical Parts Destroyed . | . . . Critical Strikes . | . . . Melee Attacks . | . . . Impact . | . . . Slashing . | . . . Piercing . | . . . Sneak Attacks . | . . . Combat Hostiles . | . . . Follow-up Attacks . | . . . Damage Inflicted 2068 | 25 1636 407 Guns 799 | 25 774 . Cannons 346 | . 272 74 Explosions 881 | . 569 312 Melee . | . . . Ramming 42 | . 21 21 Kinetic 724 | 12 638 74 Thermal 146 | . 53 93 Explosive 712 | . 493 219 Electromagnetic 444 | 13 431 . Impact . | . . . Slashing . | . . . Piercing . | . . . Highest Corruption . | . . . Average Corruption . | . . . Corruption Purged . | . . . Corruption Blocked . | . . . Overload Shots . | . . . Overflow Damage 26 | . 6 20 Projectiles . | . . . Explosions 26 | . 6 20 Melee . | . . . Knockbacks 1 | . . 1 Impact . | . . . Kinetic 1 | . . 1 Secondary . | . . . Self-Inflicted Damage 154 | . 26 128 Shots 5 | . 1 4 Rammed 4 | . 3 1 Targets Rammed 5 | . 3 2 Kicked . | . . . Crushed 1 | . . 1 Highest Temperature 120 | . 120 7 Average Temperature 82 | . 85 4 Received Heat Transfer 405 | . 405 . Siege Activations . | . . . Robots Corrupted . | . . . Combat Hostiles . | . . . Parts Fried 1 | . 1 . Impact Corruptions . | . . . Robots Melted . | . . . Combat Hostiles . | . . . Parts Melted . | . . . Heat Transferred 200 | . 100 100 Parts Sabotaged . | . . . Parts Stolen . | . . . Parts Stripped . | . . . Power Chain Reactions 1 | . 1 . Alert | -11 -10 -10 ------- Run | Yrd Mat Min Peak Influence 338 | 5 161 338 Initial 34 | . 3 34 Average 114 | 1 91 292 Maximum Alert Level 1 | . . 1 Low Security (%) 89 | 100 100 22 Level 1 10 | . . 77 Level 2 . | . . . Level 3 . | . . . Level 4 . | . . . Level 5 . | . . . High Security . | . . . Max Security . | . . . Squads Dispatched 5 | . 5 . Investigation 3 | . 3 . Extermination . | . . . Reinforcement 2 | . 2 . Assault . | . . . Garrison . | . . . Intercept . | . . . Searches Triggered . | . . . Construction Impeded . | . . . Haulers Reinforced . | . . . Active Scanning Responses . | . . . Cargo Convoy Interrupts . | . . . Stealth | -11 -10 -10 --------- Run | Yrd Mat Min Distress Signals 1 | . 1 . Communications Jammed . | . . . Distress Signals . | . . . Times Spotted 31 | . 26 5 Peak Tracking Total 3 | . 3 3 Tactical Retreats . | . . . Traps | -11 -10 -10 ------- Run | Yrd Mat Min Traps Triggered 3 | . 3 . Indirectly . | . . . Trap Hack Attempts . | . . . Triggered . | . . . Disarmed . | . . . Reprogrammed . | . . . Reused . | . . . Traps Extracted . | . . . Installed . | . . . Triggered . | . . . Machines | -11 -10 -10 ---------- Run | Yrd Mat Min Machines Disabled 8 | . 1 7 Max in Single Turn 6 | . 1 6 Machines Repaired . | . . . Machines Dismantled . | . . . Machines Sabotaged . | . . . Overloaded Fab Kills . | . . . Hacking | -11 -10 -10 --------- Run | Yrd Mat Min Machines Accessed 3 | . 3 . Terminals 3 | . 3 . Fabricators . | . . . Repair Stations . | . . . Recycling Units . | . . . Scanalyzers . | . . . Garrison Access . | . . . Total Hacks 10 | . 10 . Successful 4 | . 4 . Failed 6 | . 6 . Catastrophic 2 | . 2 . Database Lockouts . | . . . Manual 10 | . 10 . Terminals 10 | . 10 . Fabricators . | . . . Repair Stations . | . . . Recycling Units . | . . . Scanalyzers . | . . . Garrison Access . | . . . Terminal Hacks 3 | . 3 . Robot Analysis 2 | . 2 . Branch Access Points 1 | . 1 . Fabricator Hacks . | . . . Repair Station Hacks . | . . . Recycling Unit Hacks . | . . . Scanalyzer . | . . . Garrison Access Hacks . | . . . Unauthorized Hacks 1 | . 1 . Terminals 1 | . 1 . Botnet 1 | . 1 . Fabricators . | . . . Repair Stations . | . . . Recycling Units . | . . . Scanalyzers . | . . . Garrison Access . | . . . Data Cores Recovered 1 | . 1 . Used . | . . . Hacking Detections 3 | . 3 . Full Trace Events 1 | . 1 . Feedback Events . | . . . Feedback Blocked . | . . . Robot Schematics Acquired . | . . . Robots Built . | . . . Authchips . | . . . Time . | . . . Total Robot Build Rating . | . . . Part Schematics Acquired . | . . . Parts Built . | . . . Authchips . | . . . Time . | . . . Total Part Build Rating . | . . . Parts Repaired . | . . . Time . | . . . Parts Recycled . | . . . Recycled Matter . | . . . Retrieved Matter . | . . . Retrieved Components . | . . . Parts Scanalyzed . | . . . Part Schematics Acquired . | . . . Parts Damaged . | . . . Bothacking | -11 -10 -10 ------------ Run | Yrd Mat Min Used RIF Installer . | . . . Robots Hacked . | . . . Non-combat . | . . . Combat . | . . . Robot Hacks Applied . | . . . Relay Couplers Released . | . . . Fabnet Peak Effective % . | . . . Robots Rewired . | . . . Allies Hacked . | . . . Hacks Repelled . | . . . Allies | -11 -10 -10 -------- Run | Yrd Mat Min Total Allies . | . . . Largest Group . | . . . Highest-Rated Group . | . . . Highest-Rated Ally . | . . . Total Orders . | . . . Ally Attacks . | . . . Total Damage . | . . . Kills . | . . . Allies Corrupted . | . . . Allies Melted . | . . . Intel | -11 -10 -10 ------- Run | Yrd Mat Min Robot Analysis Total 2 | . 2 . Derelict Logs Recovered . | . . . Drone Launches . | . . . Drone Recoveries . | . . . Exploration | -11 -10 -10 ------------- Run | Yrd Mat Min Turns Passed 2975 | 112 2472 391 Spaces Moved 903 | 61 728 114 Core 4 | 4 . . Treads 899 | 57 728 114 Legs . | . . . Wheels . | . . . Hover . | . . . Flight . | . . . Fastest Speed 50 | 50 160 320 Average Speed 298 | 152 307 320 Slowest Speed 320 | 160 320 320 Overloaded Moves . | . . . Propulsion Burnouts . | . . . Robots Hopped . | . . . Cave-ins Triggered . | . . . Exploration Rate (%) 40 | 4 95 21 Regions Visited 2 Branch Regions 1 Pre-discovered Areas . | . . . Known Exits Taken 1 | . 1 . Unknown Exits Taken 1 | 1 . . Scrap Searched . | . . . Spaces Dug 33 | . 14 19 Terrain Destroyed 110 | . 49 61 Melee . | . . . Projectile . | . . . AOE 110 | . 49 61 Terrain Rammed . | . . . Walls Destroyed . | . . . Machines Disabled . | . . . Actions | -11 -10 -10 --------- Run | Yrd Mat Min Total 1049 | 75 847 127 Wait 13 | . 11 2 Move 901 | 60 727 114 Hop . | . . . Pick Up 32 | 7 25 . Fast Attach 6 | 6 . . Attach 7 | 1 5 1 Detach . | . . . Swap 10 | . 9 1 Drop 4 | . 4 . Fire 71 | 1 63 7 Melee . | . . . Ram . | . . . Kick . | . . . Crush 5 | . 3 2 Escape Stasis . | . . . Rewire . | . . . Trap . | . . . Miscellaneous . | . . . Route ------- -11/Scrapyard -10/Materials (discovered 5 exits: [*Mat x3] / *Min x2) -10/Mines History --------- Turn | Location | Event 10 | -11/Scrapyard | Discovered new exit (range 13) 113 | -11/Scrapyard | Entered Materials 307 | -10/Materials | Build established: Mutant 637 | -10/Materials | Discovered new exit (range 13) 1389 | -10/Materials | Discovered new exit (range 11) 1731 | -10/Materials | Discovered new exit (range 9) 1960 | -10/Materials | Discovered new exit (range 15) 2164 | -10/Materials | Core integrity fell below 50% 2182 | -10/Materials | Discovered new exit (range 16) 2418 | -10/Materials | Identified exit to Mines 2585 | -10/Materials | Entered Mines 2673 | -10/Mines | Core integrity fell below 20% 2962 | -10/Mines | Assembled infested the area 2976 | -10/Mines | Destroyed by D-53 Grenadier with Mini Grenade Launcher Last Messages --------------- 02709_ U-05 Engineer lays Concrete. 02710_ U-05 Engineer builds a Wall. 02715_ K-01 Serf collects debris. 02718_ Slammed into K-01 Serf. 02718_ U-05 Engineer builds a Wall. 02722_ U-05 Engineer lays Concrete. 02723_ U-05 Engineer builds a Wall. 02783_ T-07 Excavator is excavating. 02962_ ALERT: Infestation in the mines, dispatching Demolisher response squad. 02967_ C-30 ARC bursts open, deploying its payload. 02967_ D-53 Grenadier unfolds itself. 02967_ K-01 Serf destroyed. 02967_ Grenade Launcher destroyed. 02967_ D-53 Grenadier knocked back. 02969_ Lgt. Treads destroyed. 02969_ Ion Engine destroyed. 02972_ D-53 Grenadier destroyed. 02976_ The unstable cave ceiling collapses. Map ----- +----------------------------------------------------+ | | | | | | | | | | | | | | | | | | | | | | | | | | | | | | | | | ?????????????????????????????????????????????????? | | ?????????????????????????????????????????????????? | | ?????????????????????###?###?????????????????????? | | ?????????????????????# # #?????????????????????? | | ?????????????????????# # ##???????????????????## | | ????????????????????## ##?????????????????## | | ????????????????????# ##????????########### | | ????????????????????# ####?????# ! *| | | ???????????????????## #?????# ######### | | ???????????????????# @ = ### #?????# #?????# | | ??????????????????# % ## #?????# #?????# | | ??????????????????# #?????# #?????## | | ??????????????????# d ## #?????# ##?????#" | | ??????????????????## $ # # ## #?????# ###????## | | ???????????????????### ##### ## #??#### # ##????# | | ?????????????????????# ??????## #?## # ####????# | | ?????????????????????# ???????# #?## ##????# | | ?????????????????????# ???????# #?## ##????# | | ????????????????????? ????????# #### ##????? | | ????????????????????? ????????# ##????? | | ????????????????????# ????????###### ##????? | | ????????????????????##??????????????##"# ####????? | | ?????????????????????????????????????### ####????? | | ???????????????????????????????????????# #????? | | ???????????????????????????????????????#### #????? | | ??????????????????????????????????????????# #????? | | ??????????????????????????????????????????# #????? | | ??????????????????????????????????????????# #????? | | ??????????????????????????????????????????# #????? | | ??????????????????????????????????????????# #????? | | ??????????????????????????????????????????# #????? | | ??????????????????????????????????????????# #????? | | ??????????????????????????????????????????# #????? | | ??????????????????????????????????????????# #????? | +----------------------------------------------------+ Best States ------------- Heat Dissipation 39 Energy Generation 10 Energy Capacity 250 Matter Stores 300 Matter Capacity 300 Sight Range 16 Terrain Scan Density 10 Evasion (%) 40 Recoil Reduction 2 Item Schematics ----------------- None Robot Schematics ------------------ None Fabricated ------------ Nothing Alien Tech Used ----------------- None Achievements -------------- None Challenges ------------ None Game ------ Seed BurstTiamatReactor Manual? 0 Play Time 00:14:11 Cumulative 34.0 hours Start 2024.09.01 @ 14:00:14 End 2024.09.01 @ 14:22:25 Sessions 1 Manual Loads 0 Difficulty Rogue Special Mode None Game No. 39 Rogue 39 Adventurer 0 Explorer 0 Win Type - Total 2 Types 2/0/0/0/0/0/0/0/0 Lore% 13 Gallery% 27 Achievement% 28 Wizard Run 0 Options --------- Layout 1 ASCII 0 Keyboard 0 Movement Arrows Keybinds 0 Fullscreen 1 Font 24/Tamsyn Map View 50x35 Zoom Use 0% Tactical HUD 1 Map Filters NONE Filters NONE Steam 1 RUN: 6f0bbac0-200f-445a-b776-d757139b2107